Workbook

Sheet Pasiūlymas
A1: Perkančioji organizacija, kuriai teikiamas pasiūlymas: | C1: VŠĮ Kauno klinikinė ligoninė
B3: PASIŪLYMAS
B4: Medikamentai ne per CPO
A6: Data: | B6: 2019-01-15
A7: Nr.:
A8: Vieta: | B8: Vilnius
A10: Tiekėjo pavadinimas /Jeigu dalyvauja ūkio subjektų grupė, surašomi visi dalyvių pavadinimai/ | C10: UAB Armila
A11: Įmonės kodas /Jeigu dalyvauja ūkio subjektų grupė, surašomi visi dalyvių kodai/ | C11: 123813957
A12: PVM mokėtojo kodas /Jeigu dalyvauja ūkio subjektų grupė, surašomi visi dalyvių kodai/ | C12: LT238139515
A13: Banko pavadinimas, banko kodas, sąskaitos Nr. | C13: AB Luminor bank LT454010042400030802
A14: Tiekėjo adresas /Jeigu dalyvauja ūkio subjektų grupė, surašomi visi dalyvių adresai/ | C14: Molėtų pl. 75, Vilnius
A15: Telefono numeris | C15: 8 5 2777596
A16: Fakso numeris | C16: 8 5 2737381
A17: El. pašto adresas | C17: info@armila.com
A18: Asmens, pasirašiusio pasiūlymą saugiu elektroniniu parašu, vardas, pavardė, pareigos | C18: pardavimo skyriaus viršininko pavaduotojas Evaldas Anilionis
A19: Asmens, įgalioto pasirašyti sutartį, vardas, pavardė, pareigos | C19: direktorius Remigijus Mielinis
A23: 1. Šiuo pasiūlymu pažymime, kad sutinkame su visomis pirkimo sąlygomis, nustatytomis: 1) pirkimo skelbime, paskelbtame Viešųjų pirkimų įstatymo nustatyta tvarka; 2) pirkimo sąlygose ir kituose pirkimo dokumentuose (jų paaiškinimuose, papildymuose).
A25: Siūlomas pirkimo objektas visiškai atitinka pirkimo sąlygose nustatytus reikalavimus ir jo kaina yra:
A28: Nr. | B28: Pavadinimas | C28: Kiekis | D28: Mato vienetas | E28: Vieneto įkainis be PVM | F28: Suma be PVM | G28: Siūlomos prekės pavadinimas
A29: 1. | B29: 125mg Vaistinio valerijono šaknų sausojo ekstrakto (4:1), 75mg Melisos sausojo ekstrakto (10:1), 50mg Rožinės radiolės sausojo ekstrakto 3% 1ml tirpalo
A30: 1.1. | B30: 125mg Vaistinio valerijono šaknų sausojo ekstrakto (4:1), 75mg Melisos sausojo ekstrakto (10:1), 50mg Rožinės radiolės sausojo ekstrakto 3% 1ml tirpalo | C30: 1500 | D30: ml
E31: Suma be PVM
E32: PVM suma
E33: Suma su PVM
A35: 2. | B35: Acetilsalicilo rūgštis 240mg + Paracetamolis 180mg+ Kofeinas 30mg tab.
A36: 2.1. | B36: Acetilsalicilo rūgštis 240mg + Paracetamolis 180mg+ Kofeinas 30mg tab. | C36: 10 | D36: Tab.
E37: Suma be PVM
E38: PVM suma
E39: Suma su PVM
A41: 3. | B41: Acetonum
A42: 3.1. | B42: Acetonum | C42: 12 | D42: L | E42: 4.99 | F42: =C42*E42 -> 59.88 | G42: ACETONUM 1 L (Reachem)
E43: Suma be PVM | F43: =F42 -> 59.88
E44: PVM suma | F44: =F43*0.21 -> 12.5748
E45: Suma su PVM | F45: =F43+F44 -> 72.4548
A47: 4. | B47: Acidum aceticum
A48: 4.1. | B48: Acidum aceticum | C48: 3 | D48: L | E48: 5.65 | F48: =C48*E48 -> 16.95 | G48: AC.ACETICUM GLACIALE 1 L (GMP)
E49: Suma be PVM | F49: =F48 -> 16.95
E50: PVM suma | F50: =F49*0.21 -> 3.5595
E51: Suma su PVM | F51: =F49+F50 -> 20.5095
A53: 5. | B53: Acidum citricum
A54: 5.1. | B54: Acidum citricum | C54: 2 | D54: kg | E54: 12.8 | F54: =C54*E54 -> 25.6 | G54: AC.CITRICUM MONOH. 1 KG PULV. (GMP)
E55: Suma be PVM | F55: =F54 -> 25.6
E56: PVM suma | F56: =F55*0.21 -> 5.376
E57: Suma su PVM | F57: =F55+F56 -> 30.976
A59: 6. | B59: Acidum folicum
A60: 6.1. | B60: Acidum folicum | C60: 50 | D60: g | E60: 2 | F60: =C60*E60 -> 100 | G60: AC.FOLICUM 5 G PULV. (GMP)
E61: Suma be PVM | F61: =F60 -> 100
E62: PVM suma | F62: =F61*0.21 -> 21
E63: Suma su PVM | F63: =F61+F62 -> 121
A65: 7. | B65: Acidum folicum 400mcg
A66: 7.1. | B66: Acidum folicum 400mcg | C66: 2000 | D66: tab. | E66: 0.033 | F66: =C66*E66 -> 66 | G66: FOLICA 400 mcg tab. N30 (Vitabalans OY)
E67: Suma be PVM | F67: =F66 -> 66
E68: PVM suma | F68: =F67*0.21 -> 13.86
E69: Suma su PVM | F69: =F67+F68 -> 79.86
A71: 8. | B71: Acidum salicylicum
A72: 8.1. | B72: Acidum salicylicum | C72: 3 | D72: kg | E72: 18 | F72: =C72*E72 -> 54 | G72: AC.SALICYLICUM 1 KG PULV. (GMP)
E73: Suma be PVM | F73: =F72 -> 54
E74: PVM suma | F74: =F73*0.21 -> 11.34
E75: Suma su PVM | F75: =F73+F74 -> 65.34
A77: 9. | B77: Adata odos alerginiams mėginiams atlikti PLASTIKINĖS
A78: 9.1. | B78: Adata odos alerginiams mėginiams atlikti PLASTIKINĖS | C78: 5000 | D78: vnt.
E79: Suma be PVM
E80: PVM suma
E81: Suma su PVM
A83: 10. | B83: Adata insulininiams penams 0,23mm 32G x 4mm
A84: 10.1. | B84: Adata insuliniams penams 0,23mm 32G x 4mm | C84: 2000 | D84: vnt.
E85: Suma be PVM
E86: PVM suma
E87: Suma su PVM
A89: 11. | B89: Aklinidino 340mcg+ Formoterolio 12mcg dozuoti įkvepiamieji milteliai
A90: 11.1. | B90: Aklinidino 340mcg+ Formoterolio 12mcg dozuoti įkvepiamieji milteliai | C90: 180 | D90: doz | E90: 0.656 | F90: =C90*E90 -> 118.08 | G90: BRIMICA GENUAIR 340 µg/12 µg dozuoti įkvepiamieji milteliai 60 doz.N1 (AstraZeneca AB)
E91: Suma be PVM | F91: =F90 -> 118.08
E92: PVM suma | F92: =F91*0.05 -> 5.904
E93: Suma su PVM | F93: =F91+F92 -> 123.984
A95: 12. | B95: Aktyvinta anglis milteliais po 61,5g
A96: 12.1. | B96: Aktyvinta anglis milteliais po 61,5g | C96: 5 | D96: vnt. | E96: 30.4 | F96: =C96*E96 -> 152 | G96: ULTRACARBON granulės 61,5 g (Merck Sharp & Dohme B.V.)
E97: Suma be PVM | F97: =F96 -> 152
E98: PVM suma | F98: =F97*0.05 -> 7.6
E99: Suma su PVM | F99: =F97+F98 -> 159.6
A101: 13. | B101: Albendazolis 400mg
A102: 13.1. | B102: Albendazolis 400mg | C102: 120 | D102: tab. | E102: 1.25 | F102: =C102*E102 -> 150 | G102: ESKAZOLE 400 mg tabletės N60 (Glaxo UK-Wellcome)
E103: Suma be PVM | F103: =F102 -> 150
E104: PVM suma | F104: =F103*0.05 -> 7.5
E105: Suma su PVM | F105: =F103+F104 -> 157.5
A107: 14. | B107: Ambroksolio 15mg/5ml sirupas
A108: 14.1. | B108: Ambroksolio 15mg/5ml sirupas | C108: 14000 | D108: ml | E108: 0.025 | F108: =C108*E108 -> 350 | G108: BRONTEX 15 mg/5 ml sirupas 100 ml N1 (Ratiopharm GmbH & Co)
E109: Suma be PVM | F109: =F108 -> 350
E110: PVM suma | F110: =F109*0.05 -> 17.5
E111: Suma su PVM | F111: =F109+F110 -> 367.5
A113: 15. | B113: Amfotericinas B liposominis 50mg
A114: 15.1. | B114: Amfotericinas B liposominis 50mg | C114: 5 | D114: amp. | E114: 130 | F114: =C114*E114 -> 650 | G114: AMBISOME 50 mg milteliai infuziniam tirpalui N10 (Gilead)
E115: Suma be PVM | F115: =F114 -> 650
E116: PVM suma | F116: =F115*0.05 -> 32.5
E117: Suma su PVM | F117: =F115+F116 -> 682.5
A119: 16. | B119: Amino rūgštys + riebalinės emulsijos 1920ml (periferinis)
A120: 16.1. | B120: Amino rūgštys + riebalinės emulsijos 1920ml (periferinis) | C120: 40 | D120: flak.
E121: Suma be PVM
E122: PVM suma
E123: Suma su PVM
A125: 17. | B125: Ampicilinas 1000mg + Sulbaktamas 500mg
A126: 17.1. | B126: Ampicilinas 1000mg + Sulbaktamas 500mg | C126: 3400 | D126: amp./but. | E126: 1.9 | F126: =C126*E126 -> 6460 | G126: BITAMMON 1,5 g milteliai injekciniam ar infuziniam tirpalui N10 (BB Pharma s.r.o.)
E127: Suma be PVM | F127: =F126 -> 6460
E128: PVM suma | F128: =F127*0.05 -> 323
E129: Suma su PVM | F129: =F127+F128 -> 6783
A131: 18. | B131: Anaesthesinum
A132: 18.1. | B132: Anaesthesinum | C132: 400 | D132: g | E132: 0.2 | F132: =C132*E132 -> 80 | G132: ANAESTESINUM (BENZOCAINE) pulv 500 g (GMP)
E133: Suma be PVM | F133: =F132 -> 80
E134: PVM suma | F134: =F133*0.21 -> 16.8
E135: Suma su PVM | F135: =F133+F134 -> 96.8
A137: 19. | B137: Argenthi nitras
A138: 19.1. | B138: Argenthi nitras | C138: 50 | D138: g | E138: 1.7 | F138: =C138*E138 -> 85 | G138: ARGENTUM NITRAS 20 GR PH.EUR PULV. (Laboratoires Argenol)
E139: Suma be PVM | F139: =F138 -> 85
E140: PVM suma | F140: =F139*0.21 -> 17.85
E141: Suma su PVM | F141: =F139+F140 -> 102.85
A143: 20. | B143: Bario sulfatas rentgeno procedūrai
A144: 20.1. | B144: Bario sulfatas rentgeno procedūrai | C144: 20 | D144: kg | E144: 13 | F144: =C144*E144 -> 260 | G144: BARII SULFAS pulv 2 kg (GMP)
E145: Suma be PVM | F145: =F144 -> 260
E146: PVM suma | F146: =F145*0.21 -> 54.6
E147: Suma su PVM | F147: =F145+F146 -> 314.6
A149: 21. | B149: Bario sulfatas 1000mg/ml 200ml
A150: 21.1. | B150: Bario sulfatas 1000mg/ml 200ml | C150: 60 | D150: flak. | E150: 4.7 | F150: =C150*E150 -> 282 | G150: BARII SULFAS Medana 1 g/ml geriamoji ar tiesiosios žarnos suspensija 200 ml N1 (Medana Pharma Terpol Group)
E151: Suma be PVM | F151: =F150 -> 282
E152: PVM suma | F152: =F151*0.05 -> 14.1
E153: Suma su PVM | F153: =F151+F152 -> 296.1
A155: 22. | B155: Benfotiaminas 100mg + Piridoksinas (B6) 100mg + Cianokobalaminas 1000mcg
A156: 22.1. | B156: Benfotiaminas 100mg + Piridoksinas (B6) 100mg + Cianokobalaminas 1000mcg | C156: 100 | D156: amp. | E156: 0.57 | F156: =C156*E156 -> 57 | G156: MILGAMMA N 100 mg/100 mg/1 mg/2 ml injekcinis tirpalas N25 (Worwag Pharma GmbH&Co,KG)
E157: Suma be PVM | F157: =F156 -> 57
E158: PVM suma | F158: =F157*0.05 -> 2.85
E159: Suma su PVM | F159: =F157+F158 -> 59.85
A161: 23. | B161: Benzatino penicilinas 2400000 TV
A162: 23.1. | B162: Benzatino penicilinas 2400000 TV | C162: 30 | D162: amp.
E163: Suma be PVM
E164: PVM suma
E165: Suma su PVM
A167: 24. | B167: Betainas su poliheksanidu 350ml
A168: 24.1. | B168: Betainas su poliheksanidu 350ml | C168: 300 | D168: flak. | E168: 7.32 | F168: =C168*E168 -> 2196 | G168: PRONTOSAN ŽAIZDŲ PLOVIMO TIRPALAS 350 ML (B.Braun Melsungen AG)
E169: Suma be PVM | F169: =F168 -> 2196
E170: PVM suma | F170: =F169*0.21 -> 461.16
E171: Suma su PVM | F171: =F169+F170 -> 2657.16
A173: 25. | B173: Bolus alba
A174: 25.1. | B174: Bolus alba | C174: 2 | D174: kg | E174: 12.95 | F174: =C174*E174 -> 25.9 | G174: BOLUS ALBA (CAOLIN) 1 KG (GMP)
E175: Suma be PVM | F175: =F174 -> 25.9
E176: PVM suma | F176: =F175*0.21 -> 5.439
E177: Suma su PVM | F177: =F175+F176 -> 31.339
A179: 26. | B179: Botulizmo antitoksinas infuz tirp. 250ml
A180: 26.1. | B180: Botulizmo antitoksinas infuz tirp. 250ml | C180: 2 | D180: vnt.
E181: Suma be PVM
E182: PVM suma
E183: Suma su PVM
A185: 27. | B185: Briliantinis žaliasis 1mg/1ml 10ml
A186: 27.1. | B186: Briliantinis žaliasis 1mg/1ml 10ml | C186: 300 | D186: but. | E186: 0.8 | F186: =C186*E186 -> 240 | G186: BRILIANTINIS ŽALIASIS VALENTIS 10 ML TIRPALAS (UAB "Valentis")
E187: Suma be PVM | F187: =F186 -> 240
E188: PVM suma | F188: =F187*0.05 -> 12
E189: Suma su PVM | F189: =F187+F188 -> 252
A191: 28. | B191: Budesonidum 160mcg + Formoterolum 4.5mgc doz. Milteliai inhaliacijoms
A192: 28.1. | B192: Budesonidum 160mcg + Formoterolum 4.5mgc doz. Milteliai inhaliacijoms | C192: 600 | D192: doz. | E192: 0.186 | F192: =C192*E192 -> 111.6 | G192: BUFOMIX EASYHALER ĮKVEPIAMIEJI MILTELIAI 160MCG/4,5MCG/DOZĖJE 120D (Orion Corporation(Orion Pharma)
E193: Suma be PVM | F193: =F192 -> 111.6
E194: PVM suma | F194: =F193*0.05 -> 5.58
E195: Suma su PVM | F195: =F193+F194 -> 117.18
A197: 29. | B197: Bupivakainas 0,5% 10ml (tinka spinalinei anestezijai)
A198: 29.1. | B198: Bupivakainas 0,5% 10ml (tinka spinalinei anestezijai) | C198: 400 | D198: amp. | E198: 1.16 | F198: =C198*E198 -> 464 | G198: BUPIVACAINE-GRINDEKS 5 mg/ml injekcinis tirpalas 10 ml N5 (JSC "Grindeks")
E199: Suma be PVM | F199: =F198 -> 464
E200: PVM suma | F200: =F199*0.05 -> 23.2
E201: Suma su PVM | F201: =F199+F200 -> 487.2
A203: 30. | B203: Burnos gelis
A204: 30.1. | B204: Burnos gelis 12 % nuo burnos pažeidimų. Sudėtis: ( vandens, polivinilo pirolidono (PVP), maltodekstrino, propeno glikolio, PEG-40 hidrinto ricinos aliejaus, ksantano dervos, kalio sorbato, natrio benzoato, natrio hialuronato, kvapiųjų medžiagų, benzalkonio chlorido, dinatrio EDTA, natrio sacharino, dikalio glicirizato, tikrojo alavijo (Aloe barbadensis. | C204: 100 | D204: ml
E205: Suma be PVM
E206: PVM suma
E207: Suma su PVM
A209: 31. | B209: Butyrum cacao
A210: 31.1. | B210: Butyrum cacao | C210: 1 | D210: kg | E210: 25.5 | F210: =C210*E210 -> 25.5 | G210: CACAO BUTYRUM 1 KG (MD) (CPC Wolfgang Muhlbauer GmbH)
E211: Suma be PVM | F211: =F210 -> 25.5
E212: PVM suma | F212: =F211*0.21 -> 5.355
E213: Suma su PVM | F213: =F211+F212 -> 30.855
A215: 32. | B215: Calcii carbonas
A216: 32.1. | B216: Calcii carbonas | C216: 4 | D216: kg | E216: 7.9 | F216: =C216*E216 -> 31.6 | G216: CALCII CARBONAS PRAEC. pulv 1 kg (Zaklad Farm. AMARA Sp. z o.o.)
E217: Suma be PVM | F217: =F216 -> 31.6
E218: PVM suma | F218: =F217*0.21 -> 6.636
E219: Suma su PVM | F219: =F217+F218 -> 38.236
A221: 33. | B221: Calcii polisteronsulfonatum
A222: 33.1. | B222: Calcii polisteronsulfonatum | C222: 30 | D222: kg | E222: 122 | F222: =C222*E222 -> 3660 | G222: RESINCALCIO milteliai geriamajai suspensijai 400 g N1 (Laboratorios RUBIO, S.A.)
E223: Suma be PVM | F223: =F222 -> 3660
E224: PVM suma | F224: =F223*0.05 -> 183
E225: Suma su PVM | F225: =F223+F224 -> 3843
A227: 34. | B227: Chlorheksidinas 0,2mg/ml 1000ml
A228: 34.1. | B228: Chlorheksidinas 0,2mg/ml 1000ml | C228: 1400 | D228: flak. | E228: 2.86 | F228: =C228*E228 -> 4004 | G228: CHLORHEXIDINO IRIGACIJOMS 0,02% 1000 ML TIRPALAS (Fresenius Kabi)
E229: Suma be PVM | F229: =F228 -> 4004
E230: PVM suma | F230: =F229*0.05 -> 200.2
E231: Suma su PVM | F231: =F229+F230 -> 4204.2
A233: 35. | B233: Chlorhexidine gluconate 20%
A234: 35.1. | B234: Chlorhexidine gluconate 20% | C234: 5 | D234: L | E234: 30.9 | F234: =C234*E234 -> 154.5 | G234: CHLORHEXIDINUM DIGLUCONAS 20 % 1 KG SOL. (GMP)
E235: Suma be PVM | F235: =F234 -> 154.5
E236: PVM suma | F236: =F235*0.21 -> 32.445
E237: Suma su PVM | F237: =F235+F236 -> 186.945
A239: 36. | B239: Cholino salicilatas 200mg/ml ausų lašai
A240: 36.1. | B240: Cholino salicilatas 200mg/ml ausų lašai | C240: 60 | D240: ml | E240: 0.43 | F240: =C240*E240 -> 25.8 | G240: OTINUM LAŠAI, TIRPALAS 2G/10G N1 AUSŲ (MEDA Pharma GmbH)
E241: Suma be PVM | F241: =F240 -> 25.8
E242: PVM suma | F242: =F241*0.05 -> 1.29
E243: Suma su PVM | F243: =F241+F242 -> 27.09
A245: 37. | B245: Cinko oksido tepalas 100mg/g
... 904 more rows

Sheet Subtiekėjai
A2: Sutarties vykdymui numatome pasitelkti šiuos subtiekėjus / subteikėjus / subrangovus (įrašyti visus subtiekėjus / subteikėjus / subrangovus nepriklausomai nuo tiekiamų prekių/ teikiamų paslaugų/ atliekamų darbų vertės):
A4: Subtiekėjo / subteikėjo / subrangovo (-ų) pavadinimas (-ai) | C4: Adresas | F4: Trumpas aprašymas | I4: Procentas nuo pasiūlymo kainos be PVM
A11: Jeigu pirkimo dokumentų 18 punkte numatytas subtiekimo / subteikimo / subrangos apribojimas: Mes patvirtiname, kad subtiekėjams / subteikėjams / subrangovams (tiekėjams, kuriuos pasamdysime dalies sutartyje numatytų prekių tiekimui /paslaugų teikimui / darbų atlikimui) perduodamų tiekti prekių / teikti paslaugų/ atlikti darbų dalis neviršys proc. pasiūlymo kainos be PVM.
A13: Mes patvirtiname, kad esame / nesame (nereikalingą išbraukti) laikomi asocijuotais (susijusiais) su Perkančiąja organizacija pagal Lietuvos Respublikoje galiojančių teisės aktų (Lietuvos Respublikos pelno mokesčio, Lietuvos Respublikos pridėtinės vertės mokesčio ir Lietuvos Respublikos gyventojų pajamų mokesčio įstatymų) nuostatas.
A15: Kartu su pasiūlymu pateikiami šie dokumentai:
A17: Eil.Nr. | B17: "Pateiktų skaitmeninių dokumentų (ar jų kopijų) pavadinimas (pasiūlymą sudarančių konfidencialių dokumentų pavadinimai pažymėti prierašu KONFIDENCIALU)" | H17: Prisegtos bylos (failo) pavadinimas
A25: Pasiūlymo galiojimo užtikrinimui pateikiame :
A27: (Nurodyti užtikrinimo būdą, dydį, dokumentus)
A29: Pasiūlymas galioja iki termino, nustatyto pirkimo dokumentuose. Pasiūlymo neatskiriama dalis yra (rašoma, jeigu buvo reikalauta prie pasiūlymo pridėti atitinkamą dokumentą)
A33: Tiekėjo arba jo įgalioto asmens pareigų pavadinimas
A36: Pasirašančio asmens vardas ir pavardė
A39: **kadangi visas pasiūlymas pasirašomas saugiu elektroniniu parašu, šio dokumento atskirai pasirašyti neprivaloma.
A100: 1615 2018-11-30 14:05:39
